[Event "56th Biel Festival MTO 2023"]
[White "Sanchez Alvarez,Roberto Carlos"]
[Black "Joly,Julien"]
[Site "Biel"]
[Round "3.20"]
[Annotator "ChessBase"]
[Result "1-0"]
[Date "2023.07.19"]
[WhiteElo "2444"]
[BlackElo "2249"]
[PlyCount "113"]
[TimeControl "60"]

1. d4 {[%emt 0:0:0]} Nf6 {[%emt 0:0:0]} 2. c4 {[%emt 0:0:0]} e6 {[%emt 0:0:0]} 3. Nc3 {[%emt 0:0:0]} d5 {[%emt 0:0:0]} 4. Nf3 {[%emt 0:0:0]} Bb4 {[%emt 0:0:0]} 5. e3 {[%emt 0:0:0]} O-O {[%emt 0:0:0]} 6. Bd3 {[%emt 0:0:0]} c5 {[%emt 0:0:0]} 7. cxd5 {[%emt 0:2:27]} exd5 {[%emt 0:0:0]} 8. dxc5 {[%emt 0:0:24]} Nbd7 {[%emt 0:0:0]} 9. O-O {[%emt 0:0:48]} Nxc5 {[%emt 0:0:0]} 10. Be2 {[%emt 0:3:25]} Nce4 {[%emt 0:7:32]} 11. Nb5 {[%emt 0:1:28]} Bg4 {[%emt 0:2:9]} 12. a3 {[%emt 0:8:41]} Be7 {[%emt 0:0:24]} 13. Nbd4 {[%emt 0:8:2]} Rc8 {[%emt 0:3:48]} 14. Qb3 {[%emt 0:0:17]} Nc5 {[%emt 0:0:58]} 15. Qa2 {[%emt 0:0:47]} Nfe4 {[%emt 0:10:28]} 16. Rd1 {[%emt 0:1:24]} Bd6 {[%emt 0:4:19]} 17. Bd2 {[%emt 0:5:22]} Qf6 {[%emt 0:9:4]} 18. Be1 {[%emt 0:26:7]} Be6 {[%emt 0:11:11]} 19. Rac1 {[%emt 0:0:36]} g5 {[%emt 0:2:20]} 20. b4 {[%emt 0:3:38]} Nd7 {[%emt 0:1:27]} 21. Nxe6 {[%emt 0:10:33]} fxe6 {[%emt 0:2:29]} 22. Bd3 {[%emt 0:0:12]} Rxc1 {[%emt 0:7:38]} 23. Rxc1 {[%emt 0:0:2]} g4 {[%emt 0:12:27]} 24. Bxe4 {[%emt 0:1:25]} gxf3 {[%emt 0:1:3]} 25. Bxf3 {[%emt 0:2:33]} Qe5 {[%emt 0:1:44]} 26. h3 {[%emt 0:1:16]} Qh2+ {[%emt 0:2:50]} 27. Kf1 {[%emt 0:0:30]} Ne5 {[%emt 0:0:12]} 28. Bxd5 {[%emt 0:0:10]} exd5 {[%emt 0:1:17]} 29. Qxd5+ {[%emt 0:0:2]} Nf7 {[%emt 0:0:21]} 30. Qxb7 {[%emt 0:0:18]} Qe5 {[%emt 0:12:9]} 31. Qxa7 {[%emt 0:6:31]} Qb2 {[%emt 0:1:54]} 32. Rd1 {[%emt 0:1:33]} Be5 {[%emt 0:0:15]} 33. Qa6 {[%emt 0:1:34]} Qc2 {[%emt 0:3:14]} 34. Qe2 {[%emt 0:6:17]} Qa4 {[%emt 0:0:27]} 35. b5 {[%emt 0:2:1]} Qxa3 {[%emt 0:1:47]} 36. Qg4+ {[%emt 0:0:43]} Bg7 {[%emt 0:3:34]} 37. Bb4 {[%emt 0:0:17]} Qb3 {[%emt 0:0:12]} 38. Bxf8 {[%emt 0:0:10]} Qxb5+ {[%emt 0:0:5]} 39. Qe2 {[%emt 0:1:23]} Qxe2+ {[%emt 0:0:7]} 40. Kxe2 {[%emt 0:0:8]} Bxf8 {[%emt 0:0:1]} 41. f4 {[%emt 0:30:59]} Kg7 {[%emt 0:30:51]} 42. e4 {[%emt 0:0:33]} Kf6 {[%emt 0:0:6]} 43. Kf3 {[%emt 0:1:29]} Ke6 {[%emt 0:0:34]} 44. e5 {[%emt 0:0:11]} Bg7 {[%emt 0:0:0]} 45. Ke4 {[%emt 0:0:0]} Ke7 {[%emt 0:0:0]} 46. Ra1 {[%emt 0:0:0]} Bf8 {[%emt 0:0:0]} 47. g4 {[%emt 0:0:0]} h6 {[%emt 0:0:0]} 48. h4 {[%emt 0:0:0]} Bg7 {[%emt 0:0:0]} 49. Ra7+ {[%emt 0:0:0]} Kf8 {[%emt 0:0:0]} 50. Kf5 {[%emt 0:0:0]} Kg8 {[%emt 0:0:0]} 51. Rd7 {[%emt 0:0:0]} Nh8 {[%emt 0:0:0]} 52. h5 {[%emt 0:0:0]} Kf8 {[%emt 0:0:0]} 53. Ke6 {[%emt 0:0:0]} Kg8 {[%emt 0:0:0]} 54. g5 {[%emt 0:0:0]} hxg5 {[%emt 0:0:0]} 55. fxg5 {[%emt 0:0:0]} Nf7 {[%emt 0:0:0]} 56. Rxf7 {[%emt 0:0:0]} Bxe5 {[%emt 0:0:0]} 57. Rb7 {[%emt 0:0:0]} 1-0

[Event "56th Biel Festival MTO 2023"]
[White "Vasquez Toledo,Cristian"]
[Black "Weishaeutel,Moritz"]
[Site "Biel"]
[Round "3.21"]
[Annotator "RC"]
[Result "1-0"]
[Date "2023.07.19"]
[WhiteElo "2233"]
[BlackElo "2442"]
[PlyCount "83"]
[TimeControl "60"]

1. e4 {[%emt 0:0:0]} e5 {[%emt 0:0:0]} 2. Nf3 {[%emt 0:0:0]} Nc6 {[%emt 0:0:0]} 3. Bc4 {[%emt 0:0:0]} Nf6 {[%emt 0:0:0]} 4. d3 {[%emt 0:0:0]} Bc5 {[%emt 0:0:0]} 5. O-O {[%emt 0:0:0]} O-O {[%emt 0:0:0]} 6. Re1 {[%emt 0:0:0]} d5 {[%emt 0:0:0]} 7. exd5 {[%emt 0:0:0]} Nxd5 {[%emt 0:0:0]} 8. Nbd2 {[%emt 0:0:0]} Bg4 {[%emt 0:1:45]} 9. h3 {[%emt 0:0:8]} Bh5 {[%emt 0:0:11]} 10. Ne4 {[%emt 0:0:49]} Be7 {[%emt 0:5:47]} 11. Ng3 {[%emt 0:1:14]} Bxf3 {[%emt 0:5:25]} 12. Qxf3 {[%emt 0:0:22]} Nb6 {[%emt 0:0:5]} 13. Bb3 {[%emt 0:1:16]} Bg5 {[%emt 0:2:26]} 14. c3 {[%emt 0:2:9]} Bxc1 {[%emt 0:0:29]} 15. Raxc1 {[%emt 0:0:6]} Qd7 {[%emt 0:1:25]} 16. Re4 {[%emt 0:8:54]} Kh8 {[%emt 0:22:44]} 17. Rh4 {[%emt 0:8:4]} Qd6 {[%emt 0:10:19]} 18. Qh5 {[%emt 0:21:25]} h6 {[%emt 0:0:22]} 19. Nf5 {[%emt 0:1:26]} Qg6 {[%emt 0:1:14]} 20. Qf3 {[%emt 0:0:9]} Ne7 {[%emt 0:6:49]} 21. Rh5 {[%emt 0:9:2]} Ned5 {[%emt 0:5:50]} 22. Nh4 {[%emt 0:2:7]} Qd6 {[%emt 0:0:15]} 23. g3 {[%emt 0:11:17]} Nf6 {[%emt 0:3:53]} 24. Nf5 {[%emt 0:0:43]} Qc6 {[%emt 0:9:27]} 25. Nxh6 {[%emt 0:1:39]} Nxh5 {[%emt 0:1:53]} 26. Nxf7+ {[%emt 0:0:5]} Rxf7 {[%emt 0:0:5]} 27. Qxh5+ {[%emt 0:0:4]} Qh6 {[%emt 0:0:16]} 28. Qxh6+ {[%emt 0:0:16]} gxh6 {[%emt 0:0:7]} 29. Bxf7 {[%emt 0:0:3]} Rd8 {[%emt 0:0:16]} 30. Bg6 {[%emt 0:4:10]} Kg7 {[%emt 0:0:12]} 31. Be4 {[%emt 0:0:13]} c6 {[%emt 0:0:9]} 32. Kg2 {[%emt 0:4:25]} Na4 {[%emt 0:0:16]} 33. Rc2 {[%emt 0:1:13]} Nc5 {[%emt 0:0:3]} 34. Kf3 {[%emt 0:0:7]} Nxd3 {[%emt 0:0:18]} 35. Rd2 {[%emt 0:0:16]} Rf8+ {[%emt 0:0:18]} 36. Ke3 {[%emt 0:0:41]} Nc5 {[%emt 0:0:6]} 37. Bc2 {[%emt 0:3:1]} Rf7 {[%emt 0:0:40]} 38. Rd6 {[%emt 0:0:59]} e4 {[%emt 0:1:6]} 39. Bxe4 {[%emt 0:2:31]} Rxf2 {[%emt 0:0:27]} 40. Rg6+ {[%emt 0:0:15]} Kf7 {[%emt 0:0:9]} 41. Kxf2 {[%emt 0:30:41]} Nxe4+ {[%emt 0:30:8]} 42. Ke3 {[%emt 0:0:4]} 1-0

[Event "56th Biel Festival MTO 2023"]
[White "Frey,Fabian"]
[Black "Rohith Krishna S"]
[Site "Biel"]
[Round "3.22"]
[Annotator "RC"]
[Result "1-0"]
[Date "2023.07.19"]
[WhiteElo "2230"]
[BlackElo "2429"]
[PlyCount "98"]
[TimeControl "60"]

1. e4 {[%emt 0:0:0]} e5 {[%emt 0:0:0]} 2. Nf3 {[%emt 0:0:0]} Nc6 {[%emt 0:0:0]} 3. Bb5 {[%emt 0:0:0]} a6 {[%emt 0:0:0]} 4. Ba4 {[%emt 0:0:0]} Nf6 {[%emt 0:0:0]} 5. O-O {[%emt 0:0:0]} Be7 {[%emt 0:0:0]} 6. Re1 {[%emt 0:0:0]} b5 {[%emt 0:0:0]} 7. Bb3 {[%emt 0:0:0]} d6 {[%emt 0:0:0]} 8. a4 {[%emt 0:0:0]} Bg4 {[%emt 0:0:0]} 9. c3 {[%emt 0:0:0]} O-O {[%emt 0:0:0]} 10. h3 {[%emt 0:0:0]} Bxf3 {[%emt 0:2:45]} 11. Qxf3 {[%emt 0:0:0]} Na5 {[%emt 0:0:9]} 12. Bc2 {[%emt 0:0:0]} b4 {[%emt 0:0:35]} 13. d4 {[%emt 0:0:0]} c5 {[%emt 0:2:15]} 14. d5 {[%emt 0:0:0]} Nd7 {[%emt 0:13:44]} 15. b3 {[%emt 0:0:0]} Bg5 {[%emt 0:9:51]} 16. Bb2 {[%emt 0:0:0]} Ra7 {[%emt 0:4:19]} 17. Re2 {[%emt 0:1:3]} g6 {[%emt 0:10:36]} 18. Nd2 {[%emt 0:11:5]} Nb6 {[%emt 0:0:14]} 19. c4 {[%emt 0:1:57]} f5 {[%emt 0:10:8]} 20. exf5 {[%emt 0:16:43]} Bxd2 {[%emt 0:10:8]} 21. Rxd2 {[%emt 0:0:52]} Qg5 {[%emt 0:3:12]} 22. Qe3 {[%emt 0:22:54]} Qxe3 {[%emt 0:0:12]} 23. fxe3 {[%emt 0:0:4]} gxf5 {[%emt 0:0:10]} 24. Rf2 {[%emt 0:0:50]} Raf7 {[%emt 0:1:38]} 25. Raf1 {[%emt 0:1:37]} Kg7 {[%emt 0:2:43]} 26. g3 {[%emt 0:7:58]} Rf6 {[%emt 0:2:1]} 27. Kg2 {[%emt 0:7:24]} h5 {[%emt 0:3:2]} 28. Bc1 {[%emt 0:6:15]} Nd7 {[%emt 0:4:24]} 29. Bb2 {[%emt 0:1:19]} Nb6 {[%emt 0:3:4]} 30. Kg1 {[%emt 0:0:16]} R8f7 {[%emt 0:2:12]} 31. Kg2 {[%emt 0:2:11]} Na8 {[%emt 0:2:39]} 32. Bd1 {[%emt 0:4:20]} Rf8 {[%emt 0:0:55]} 33. Bc1 {[%emt 0:1:20]} Nc7 {[%emt 0:2:12]} 34. e4 {[%emt 0:6:57]} h4 {[%emt 0:6:35]} 35. exf5 {[%emt 0:2:33]} hxg3 {[%emt 0:0:9]} 36. Kxg3 {[%emt 0:0:37]} Kh8 {[%emt 0:0:18]} 37. Bg5 {[%emt 0:3:41]} Rg8 {[%emt 0:1:9]} 38. h4 {[%emt 0:0:19]} Ne8 {[%emt 0:1:32]} 39. Kh3 {[%emt 0:2:5]} Kg7 {[%emt 0:3:28]} 40. Rg2 {[%emt 0:4:13]} Rh8 {[%emt 0:0:6]} 41. Bxf6+ {[%emt 0:0:0]} Kxf6 {[%emt 0:0:0]} 42. Rg6+ {[%emt 0:0:0]} Kf7 {[%emt 0:0:0]} 43. Rfg1 {[%emt 0:0:0]} Rh7 {[%emt 0:0:0]} 44. h5 {[%emt 0:0:0]} Nf6 {[%emt 0:0:0]} 45. h6 {[%emt 0:0:36]} Rh8 {[%emt 0:0:0]} 46. Kh4 {[%emt 0:3:49]} Ke7 {[%emt 0:0:0]} 47. R1g3 {[%emt 0:5:51]} Ne4 {[%emt 0:0:0]} 48. Re6+ {[%emt 0:0:55]} Kf8 {[%emt 0:0:0]} 49. Bh5 {[%emt 0:5:46]} Nxg3 {[%emt 0:0:0]} 1-0

[Event "56th Biel Festival MTO 2023"]
[White "Costello,Alexander"]
[Black "Vantika Agrawal"]
[Site "Biel"]
[Round "3.23"]
[Annotator "RC"]
[Result "0-1"]
[Date "2023.07.19"]
[WhiteElo "2224"]
[BlackElo "2428"]
[PlyCount "104"]
[TimeControl "60"]

1. e4 {[%emt 0:0:0]} c5 {[%emt 0:0:0]} 2. Nf3 {[%emt 0:0:0]} d6 {[%emt 0:0:0]} 3. Bb5+ {[%emt 0:0:0]} Nd7 {[%emt 0:0:0]} 4. d4 {[%emt 0:0:0]} cxd4 {[%emt 0:0:0]} 5. Qxd4 {[%emt 0:0:0]} a6 {[%emt 0:0:0]} 6. Bxd7+ {[%emt 0:0:0]} Bxd7 {[%emt 0:0:0]} 7. Bg5 {[%emt 0:0:0]} Rc8 {[%emt 0:0:53]} 8. Nc3 {[%emt 0:0:0]} h6 {[%emt 0:1:32]} 9. Bh4 {[%emt 0:0:0]} e5 {[%emt 0:3:44]} 10. Qd3 {[%emt 0:0:0]} g5 {[%emt 0:2:27]} 11. Bg3 {[%emt 0:0:0]} Qc7 {[%emt 0:9:6]} 12. Nd2 {[%emt 0:0:0]} Nf6 {[%emt 0:2:56]} 13. O-O-O {[%emt 0:0:0]} b5 {[%emt 0:4:20]} 14. a3 {[%emt 0:0:0]} Be6 {[%emt 0:9:32]} 15. h4 {[%emt 0:0:0]} g4 {[%emt 0:1:34]} 16. f3 {[%emt 0:3:44]} h5 {[%emt 0:21:51]} 17. Kb1 {[%emt 0:7:44]} gxf3 {[%emt 0:28:50]} 18. gxf3 {[%emt 0:0:40]} Bh6 {[%emt 0:4:53]} 19. Bf2 {[%emt 0:6:53]} Ke7 {[%emt 0:0:52]} 20. Rhe1 {[%emt 0:14:6]} Rhg8 {[%emt 0:1:9]} 21. Re2 {[%emt 0:16:56]} Rg6 {[%emt 0:6:48]} 22. Be3 {[%emt 0:0:57]} Bxe3 {[%emt 0:0:8]} 23. Rxe3 {[%emt 0:0:5]} Rg2 {[%emt 0:0:38]} 24. Ree1 {[%emt 0:16:6]} Qb6 {[%emt 0:0:34]} 25. f4 {[%emt 0:3:7]} Qd4 {[%emt 0:0:39]} 26. fxe5 {[%emt 0:16:12]} dxe5 {[%emt 0:0:5]} 27. Nf3 {[%emt 0:0:13]} Qxd3 {[%emt 0:0:33]} 28. Rxd3 {[%emt 0:0:1]} Nd7 {[%emt 0:0:27]} 29. Kc1 {[%emt 0:6:23]} f6 {[%emt 0:0:25]} 30. Rd2 {[%emt 0:0:59]} Rg3 {[%emt 0:0:33]} 31. Rf2 {[%emt 0:0:34]} Nb6 {[%emt 0:0:55]} 32. Nd1 {[%emt 0:3:55]} Nc4 {[%emt 0:0:30]} 33. Ne3 {[%emt 0:2:38]} Nd6 {[%emt 0:0:32]} 34. Nd2 {[%emt 0:1:48]} Rcg8 {[%emt 0:0:18]} 35. Nd5+ {[%emt 0:3:7]} Bxd5 {[%emt 0:0:6]} 36. exd5 {[%emt 0:0:2]} Rg1 {[%emt 0:0:51]} 37. Kd1 {[%emt 0:1:57]} Rxe1+ {[%emt 0:0:12]} 38. Kxe1 {[%emt 0:0:1]} Rg4 {[%emt 0:0:12]} 39. Nf3 {[%emt 0:0:11]} Nf5 {[%emt 0:1:48]} 40. Ng5 {[%emt 0:1:32]} Rg1+ {[%emt 0:0:2]} 41. Kd2 {[%emt 0:0:0]} Nd6 {[%emt 0:0:0]} 42. Nf3 {[%emt 0:0:0]} Rg4 {[%emt 0:0:0]} 43. Re2 {[%emt 0:0:0]} Nc4+ {[%emt 0:0:0]} 44. Ke1 {[%emt 0:0:0]} Rf4 {[%emt 0:0:0]} 45. Ng5 {[%emt 0:6:11]} fxg5 {[%emt 0:0:23]} 46. b3 {[%emt 0:0:4]} Nxa3 {[%emt 0:0:29]} 47. Rxe5+ {[%emt 0:0:43]} Kd6 {[%emt 0:0:3]} 48. Re6+ {[%emt 0:2:27]} Kxd5 {[%emt 0:0:4]} 49. Rxa6 {[%emt 0:0:2]} Nxc2+ {[%emt 0:0:13]} 50. Kd1 {[%emt 0:0:5]} Nb4 {[%emt 0:1:13]} 51. Ra5 {[%emt 0:0:30]} Kc5 {[%emt 0:0:27]} 52. hxg5 {[%emt 0:0:6]} Rg4 {[%emt 0:0:3]} 0-1

[Event "56th Biel Festival MTO 2023"]
[White "Zhang,Lanlin"]
[Black "Morawietz,Dieter"]
[Site "Biel"]
[Round "3.24"]
[Annotator "RC"]
[Result "0-1"]
[Date "2023.07.19"]
[WhiteElo "2194"]
[BlackElo "2396"]
[PlyCount "98"]
[TimeControl "60"]

1. e4 {[%emt 0:0:0]} e6 {[%emt 0:0:0]} 2. d3 {[%emt 0:0:0]} c5 {[%emt 0:0:0]} 3. g3 {[%emt 0:0:0]} Nc6 {[%emt 0:0:0]} 4. Bg2 {[%emt 0:0:0]} Nf6 {[%emt 0:0:0]} 5. Nf3 {[%emt 0:0:0]} Be7 {[%emt 0:0:0]} 6. c3 {[%emt 0:0:0]} d5 {[%emt 0:0:0]} 7. e5 {[%emt 0:0:0]} Nd7 {[%emt 0:0:0]} 8. d4 {[%emt 0:0:0]} b5 {[%emt 0:0:0]} 9. O-O {[%emt 0:0:0]} Rb8 {[%emt 0:2:43]} 10. Re1 {[%emt 0:2:16]} b4 {[%emt 0:4:39]} 11. h4 {[%emt 0:5:11]} h6 {[%emt 0:4:35]} 12. h5 {[%emt 0:0:37]} Ba6 {[%emt 0:2:4]} 13. Bf4 {[%emt 0:2:15]} bxc3 {[%emt 0:1:36]} 14. bxc3 {[%emt 0:0:5]} Qa5 {[%emt 0:0:9]} 15. Re3 {[%emt 0:30:11]} Rb2 {[%emt 0:7:52]} 16. a4 {[%emt 0:6:11]} O-O {[%emt 0:10:49]} 17. g4 {[%emt 0:3:52]} Rc8 {[%emt 0:9:46]} 18. g5 {[%emt 0:5:46]} cxd4 {[%emt 0:10:50]} 19. cxd4 {[%emt 0:0:31]} hxg5 {[%emt 0:1:21]} 20. Bxg5 {[%emt 0:1:10]} Qd8 {[%emt 0:17:18]} 21. Bf4 {[%emt 0:2:18]} Nb4 {[%emt 0:1:12]} 22. Na3 {[%emt 0:1:11]} Nc2 {[%emt 0:1:9]} 23. Nxc2 {[%emt 0:0:4]} Rcxc2 {[%emt 0:0:6]} 24. Bg3 {[%emt 0:0:4]} Be2 {[%emt 0:2:7]} 25. Rxe2 {[%emt 0:0:5]} Rxe2 {[%emt 0:0:5]} 26. Rc1 {[%emt 0:6:0]} Bg5 {[%emt 0:6:7]} 27. Rc3 {[%emt 0:4:20]} Ra2 {[%emt 0:1:21]} 28. Bf1 {[%emt 0:0:37]} Reb2 {[%emt 0:0:10]} 29. Bd3 {[%emt 0:4:54]} Nf8 {[%emt 0:4:35]} 30. Kg2 {[%emt 0:10:30]} Be3 {[%emt 0:6:6]} 31. Bc2 {[%emt 0:6:48]} Bh6 {[%emt 0:0:9]} 32. Bh4 {[%emt 0:4:2]} Qd7 {[%emt 0:1:0]} 33. Qd3 {[%emt 0:0:59]} Rb8 {[%emt 0:0:38]} 34. Qa6 {[%emt 0:0:23]} Rab2 {[%emt 0:0:42]} 35. a5 {[%emt 0:4:4]} R2b7 {[%emt 0:3:23]} 36. Rc5 {[%emt 0:2:3]} Bc1 {[%emt 0:1:4]} 37. Qd3 {[%emt 0:1:47]} Rb4 {[%emt 0:1:37]} 38. a6 {[%emt 0:0:24]} Rc8 {[%emt 0:0:50]} 39. Be7 {[%emt 0:0:39]} Rc4 {[%emt 0:1:2]} 40. Bd6 {[%emt 0:0:32]} Bh6 {[%emt 0:0:29]} 41. Bb3 {[%emt 0:30:16]} Rc1 {[%emt 0:0:0]} 42. Bc2 {[%emt 0:0:0]} f5 {[%emt 0:0:0]} 43. Bd1 {[%emt 0:0:0]} Qe8 {[%emt 0:0:0]} 44. Ng1 {[%emt 0:0:0]} Nd7 {[%emt 0:0:0]} 45. Ra5 {[%emt 0:0:0]} R8c3 {[%emt 0:0:59]} 46. Qe2 {[%emt 0:0:0]} Qd8 {[%emt 0:0:5]} 47. Bb4 {[%emt 0:3:6]} Qg5+ {[%emt 0:0:18]} 48. Kh1 {[%emt 0:0:25]} Rxd1 {[%emt 0:0:48]} 49. Qxd1 {[%emt 0:0:46]} Rc1 {[%emt 0:0:5]} 0-1

[Event "56th Biel Festival MTO 2023"]
[White "Ajay Krishna,S."]
[Black "Urh,Zala"]
[Site "Biel"]
[Round "3.25"]
[Annotator "ChessBase"]
[Result "1-0"]
[Date "2023.07.19"]
[WhiteElo "2390"]
[BlackElo "2231"]
[PlyCount "77"]
[TimeControl "60"]

1. Nf3 {[%emt 0:0:0]} d5 {[%emt 0:0:0]} 2. d4 {[%emt 0:0:0]} Nf6 {[%emt 0:0:0]} 3. c3 {[%emt 0:0:0]} c5 {[%emt 0:0:0]} 4. dxc5 {[%emt 0:0:0]} e6 {[%emt 0:0:0]} 5. Be3 {[%emt 0:0:0]} Qc7 {[%emt 0:0:0]} 6. b4 {[%emt 0:0:0]} a5 {[%emt 0:0:0]} 7. Qb3 {[%emt 0:2:20]} Nc6 {[%emt 0:10:15]} 8. Na3 {[%emt 0:13:13]} axb4 {[%emt 0:19:4]} 9. cxb4 {[%emt 0:1:17]} e5 {[%emt 0:0:16]} 10. Nb5 {[%emt 0:3:43]} Qd8 {[%emt 0:1:20]} 11. Bg5 {[%emt 0:15:32]} Be6 {[%emt 0:3:26]} 12. Qb2 {[%emt 0:10:36]} h6 {[%emt 0:12:10]} 13. Bd2 {[%emt 0:19:55]} Qb8 {[%emt 0:1:46]} 14. e3 {[%emt 0:1:49]} Be7 {[%emt 0:1:20]} 15. Bc3 {[%emt 0:6:6]} Nd7 {[%emt 0:11:23]} 16. Be2 {[%emt 0:2:31]} O-O {[%emt 0:2:2]} 17. O-O {[%emt 0:0:10]} f5 {[%emt 0:6:53]} 18. a3 {[%emt 0:7:16]} f4 {[%emt 0:4:6]} 19. Rfe1 {[%emt 0:1:23]} fxe3 {[%emt 0:4:35]} 20. fxe3 {[%emt 0:0:5]} b6 {[%emt 0:0:26]} 21. cxb6 {[%emt 0:1:31]} Qxb6 {[%emt 0:0:6]} 22. Kh1 {[%emt 0:2:25]} Rf5 {[%emt 0:11:47]} 23. a4 {[%emt 0:3:34]} Raf8 {[%emt 0:2:2]} 24. Qd2 {[%emt 0:0:40]} d4 {[%emt 0:2:22]} 25. exd4 {[%emt 0:0:56]} e4 {[%emt 0:0:4]} 26. Ng1 {[%emt 0:1:22]} Bg5 {[%emt 0:1:2]} 27. Qc2 {[%emt 0:1:38]} Bd5 {[%emt 0:2:2]} 28. Rf1 {[%emt 0:0:55]} Ne7 {[%emt 0:2:34]} 29. Bb2 {[%emt 0:4:24]} Qg6 {[%emt 0:0:30]} 30. Qc7 {[%emt 0:0:30]} Bf4 {[%emt 0:3:0]} 31. Qxd7 {[%emt 0:0:9]} Rg5 {[%emt 0:0:2]} 32. g3 {[%emt 0:1:1]} Be6 {[%emt 0:1:25]} 33. Qxe7 {[%emt 0:0:28]} Rf7 {[%emt 0:0:30]} 34. Qe8+ {[%emt 0:0:15]} Kh7 {[%emt 0:0:3]} 35. Rxf4 {[%emt 0:0:4]} Rxg3 {[%emt 0:0:31]} 36. hxg3 {[%emt 0:1:22]} Qxg3 {[%emt 0:0:17]} 37. Rxf7 {[%emt 0:0:14]} Bd5 {[%emt 0:0:51]} 38. Rxg7+ {[%emt 0:0:39]} Qxg7 {[%emt 0:0:13]} 39. Qe5 {[%emt 0:0:10]} 1-0

[Event "56th Biel Festival MTO 2023"]
[White "Foerster-Yialamas,Lucas"]
[Black "Seul,Georg"]
[Site "Biel"]
[Round "3.26"]
[Annotator "RC"]
[Result "1/2-1/2"]
[Date "2023.07.19"]
[WhiteElo "2157"]
[BlackElo "2376"]
[PlyCount "134"]
[TimeControl "60"]

1. e4 {[%emt 0:0:0]} c6 {[%emt 0:0:0]} 2. d4 {[%emt 0:0:0]} d5 {[%emt 0:0:0]} 3. e5 {[%emt 0:0:0]} c5 {[%emt 0:0:0]} 4. dxc5 {[%emt 0:0:0]} e6 {[%emt 0:0:0]} 5. a3 {[%emt 0:0:0]} Bxc5 {[%emt 0:0:0]} 6. b4 {[%emt 0:0:0]} Be7 {[%emt 0:0:0]} 7. Nf3 {[%emt 0:0:0]} a5 {[%emt 0:0:0]} 8. b5 {[%emt 0:0:0]} Nd7 {[%emt 0:0:0]} 9. c4 {[%emt 0:0:0]} dxc4 {[%emt 0:0:58]} 10. Nbd2 {[%emt 0:0:0]} Nc5 {[%emt 0:17:57]} 11. Nxc4 {[%emt 0:0:0]} Qxd1+ {[%emt 0:0:45]} 12. Kxd1 {[%emt 0:0:0]} Nh6 {[%emt 0:22:15]} 13. Bxh6 {[%emt 0:20:2]} gxh6 {[%emt 0:0:33]} 14. Nb6 {[%emt 0:8:3]} Rb8 {[%emt 0:0:14]} 15. Nd2 {[%emt 0:18:11]} O-O {[%emt 0:9:50]} 16. Kc2 {[%emt 0:1:32]} Nd7 {[%emt 0:22:24]} 17. Nbc4 {[%emt 0:0:58]} b6 {[%emt 0:0:6]} 18. Be2 {[%emt 0:2:11]} Bb7 {[%emt 0:0:11]} 19. Bf3 {[%emt 0:1:20]} Bxf3 {[%emt 0:4:24]} 20. gxf3 {[%emt 0:0:16]} Rbc8 {[%emt 0:0:48]} 21. f4 {[%emt 0:1:56]} f6 {[%emt 0:2:34]} 22. Rhg1+ {[%emt 0:0:33]} Kh8 {[%emt 0:0:33]} 23. exf6 {[%emt 0:0:54]} Rxf6 {[%emt 0:4:47]} 24. Rge1 {[%emt 0:4:52]} Rxf4 {[%emt 0:3:25]} 25. Rxe6 {[%emt 0:0:43]} Rfxc4+ {[%emt 0:0:24]} 26. Nxc4 {[%emt 0:0:10]} Rxc4+ {[%emt 0:0:4]} 27. Kb3 {[%emt 0:2:32]} Rc7 {[%emt 0:0:14]} 28. Rc6 {[%emt 0:0:32]} Rb7 {[%emt 0:0:16]} 29. Re1 {[%emt 0:2:36]} Bc5 {[%emt 0:3:32]} 30. f4 {[%emt 0:1:16]} Kg7 {[%emt 0:0:45]} 31. f5 {[%emt 0:0:56]} Nf6 {[%emt 0:2:1]} 32. Ree6 {[%emt 0:3:51]} Rf7 {[%emt 0:0:9]} 33. a4 {[%emt 0:5:32]} Nd5 {[%emt 0:1:0]} 34. Re5 {[%emt 0:3:8]} Rd7 {[%emt 0:0:46]} 35. Ree6 {[%emt 0:1:51]} Rf7 {[%emt 0:1:35]} 36. Re5 {[%emt 0:1:39]} Rd7 {[%emt 0:0:41]} 37. Ree6 {[%emt 0:1:17]} h5 {[%emt 0:1:47]} 38. Rh6 {[%emt 0:2:21]} Nf4 {[%emt 0:0:39]} 39. Rxb6 {[%emt 0:4:25]} Bxb6 {[%emt 0:0:7]} 40. Rxb6 {[%emt 0:0:3]} Rd3+ {[%emt 0:0:32]} 41. Kc4 {[%emt 0:31:5]} Ra3 {[%emt 0:33:28]} 42. Rd6 {[%emt 0:0:9]} Rxa4+ {[%emt 0:0:19]} 43. Kc5 {[%emt 0:0:3]} Ra3 {[%emt 0:0:0]} 44. b6 {[%emt 0:0:0]} Rb3 {[%emt 0:0:0]} 45. Kc6 {[%emt 0:0:0]} Nd3 {[%emt 0:0:0]} 46. b7 {[%emt 0:0:0]} Ne5+ {[%emt 0:0:0]} 47. Kc7 {[%emt 0:0:0]} Rc3+ {[%emt 0:0:0]} 48. Kb6 {[%emt 0:0:0]} Nc4+ {[%emt 0:0:0]} 49. Ka7 {[%emt 0:0:0]} Nxd6 {[%emt 0:0:0]} 50. b8=Q {[%emt 0:0:0]} Rc6 {[%emt 0:0:0]} 51. Qb2+ {[%emt 0:0:0]} Kf7 {[%emt 0:0:0]} 52. Qe2 {[%emt 0:0:0]} Nxf5 {[%emt 0:0:56]} 53. Qxh5+ {[%emt 0:0:0]} Kf6 {[%emt 0:0:56]} 54. Qxh7 {[%emt 0:0:0]} Re6 {[%emt 0:1:15]} 55. Qh8+ {[%emt 0:0:0]} Kf7 {[%emt 0:0:40]} 56. Qa1 {[%emt 0:0:0]} Ng7 {[%emt 0:0:50]} 57. h4 {[%emt 0:0:0]} Rh6 {[%emt 0:0:35]} 58. Qf1+ {[%emt 0:0:0]} Kg8 {[%emt 0:1:31]} 59. Qc4+ {[%emt 0:0:0]} Kh8 {[%emt 0:0:9]} 60. Qd4 {[%emt 0:0:0]} Rh5 {[%emt 0:0:13]} 61. Kb6 {[%emt 0:0:0]} Rf5 {[%emt 0:0:26]} 62. Kc6 {[%emt 0:0:0]} Rh5 {[%emt 0:0:29]} 63. Kd6 {[%emt 0:0:0]} Rf5 {[%emt 0:0:13]} 64. Ke7 {[%emt 0:0:0]} Kh7 {[%emt 0:2:29]} 65. Qg4 {[%emt 0:0:0]} Kh6 {[%emt 0:0:23]} 66. h5 {[%emt 0:0:0]} Rxh5 {[%emt 0:0:41]} 67. Kf7 {[%emt 0:0:0]} Rf5+ {[%emt 0:0:0]} 1/2-1/2

[Event "56th Biel Festival MTO 2023"]
[White "Jain Kashish Manoj"]
[Black "Kamber,Bruno"]
[Site "Biel"]
[Round "3.27"]
[Annotator "RC"]
[Result "1-0"]
[Date "2023.07.19"]
[WhiteElo "2375"]
[BlackElo "2214"]
[PlyCount "59"]
[TimeControl "60"]

1. e4 {[%emt 0:0:0]} c5 {[%emt 0:0:0]} 2. Nf3 {[%emt 0:0:0]} e6 {[%emt 0:0:0]} 3. d4 {[%emt 0:0:0]} cxd4 {[%emt 0:0:0]} 4. Nxd4 {[%emt 0:0:0]} Nc6 {[%emt 0:0:0]} 5. Nc3 {[%emt 0:0:0]} a6 {[%emt 0:0:0]} 6. Be3 {[%emt 0:0:0]} Qc7 {[%emt 0:0:0]} 7. Qf3 {[%emt 0:0:0]} b5 {[%emt 0:5:30]} 8. Nxc6 {[%emt 0:0:31]} Qxc6 {[%emt 0:0:17]} 9. O-O-O {[%emt 0:6:17]} Bb7 {[%emt 0:1:48]} 10. Bd3 {[%emt 0:1:39]} Nf6 {[%emt 0:4:37]} 11. Bd4 {[%emt 0:9:27]} Be7 {[%emt 0:6:56]} 12. Rhe1 {[%emt 0:1:43]} b4 {[%emt 0:18:1]} 13. Nb1 {[%emt 0:9:36]} Qd6 {[%emt 0:10:50]} 14. Be3 {[%emt 0:13:10]} Qxh2 {[%emt 0:5:36]} 15. Nd2 {[%emt 0:3:26]} Rc8 {[%emt 0:3:59]} 16. g4 {[%emt 0:8:21]} h5 {[%emt 0:0:37]} 17. gxh5 {[%emt 0:6:49]} Rxh5 {[%emt 0:0:25]} 18. Rh1 {[%emt 0:7:8]} Qe5 {[%emt 0:0:31]} 19. Bf4 {[%emt 0:2:52]} Qc5 {[%emt 0:15:50]} 20. Nb3 {[%emt 0:0:23]} Qf5 {[%emt 0:1:25]} 21. Qe3 {[%emt 0:6:57]} Qh7 {[%emt 0:11:45]} 22. e5 {[%emt 0:0:23]} Bxh1 {[%emt 0:3:11]} 23. exf6 {[%emt 0:3:0]} Qh8 {[%emt 0:2:53]} 24. fxe7 {[%emt 0:0:10]} Rd5 {[%emt 0:3:5]} 25. Rg1 {[%emt 0:3:58]} Kxe7 {[%emt 0:1:32]} 26. Bxa6 {[%emt 0:1:29]} Ra8 {[%emt 0:0:18]} 27. Bb7 {[%emt 0:0:44]} Rh5 {[%emt 0:2:10]} 28. Bxa8 {[%emt 0:0:22]} Qxa8 {[%emt 0:0:6]} 29. Qd4 {[%emt 0:0:54]} Qe4 {[%emt 0:1:8]} 30. Bd6+ {[%emt 0:0:37]} 1-0